[Event "FIDE WYCC Girls U18 2023"]
[Site "Montesilvano"]
[Date "2023.11.17"]
[Round "5.4"]
[White "Mihelic, Vesna"]
[Black "Luong, Hoang Tu Linh"]
[Result "1/2-1/2"]
[ECO "B51"]
[WhiteElo "2102"]
[BlackElo "1887"]
[Annotator "NA"]
[PlyCount "64"]
[EventDate "2023.11.13"]
[EventType "swiss"]
[EventCountry "ITA"]
[SourceTitle "playchess.com"]
[Source "ChessBase"]
[SourceQuality "1"]
[TimeControl "40/5400+30:1800+30"]

1. e4 {[%emt 0:00:03]} c5 {[%emt 0:00:08]} 2. Nf3 {[%emt 0:00:05]} d6 {[%emt 0:00:06]} 3. Bb5+ {[%emt 0:00:07]} Nd7 {[%emt 0:00:16]} 4. d4 {[%emt 0:00:10]} cxd4 {[%emt 0:00:35]} 5. Qxd4 {[%emt 0:00:14]} a6 {[%emt 0:00:38]} 6. Be2 {[%emt 0:00:08]} Ngf6 {[%emt 0:00:31]} 7. O-O {[%emt 0:00:48]} g6 {[%emt 0:00:47]} 8. Nc3 {[%emt 0:16:08]} Bg7 {[%emt 0:00:59]} 9. Rd1 {[%emt 0:05:51]} O-O {[%emt 0:02:26]} 10. Qe3 {[%emt 0:03:25]} Ng4 {[%emt 0:22:40]} 11. Qg5 {[%emt 0:16:22]} Nde5 {[%emt 0:17:55]} 12. Nxe5 {[%emt 0:01:58]} Nxe5 {[%emt 0:02:36]} 13. Be3 {[%emt 0:04:53]} Be6 {[%emt 0:08:07]} 14. f4 {[%emt 0:11:23]} Nc4 {[%emt 0:02:49]} 15. Bxc4 {[%emt 0:00:18]} Bxc4 {[%emt 0:00:03]} 16. Nd5 {[%emt 0:01:47]} Bxd5 {[%emt 0:01:26]} 17. Qxd5 {[%emt 0:01:15]} Qc7 {[%emt 0:04:23]} 18. c3 {[%emt 0:00:25]} Rfd8 {[%emt 0:00:44]} 19. a4 {[%emt 0:09:36]} e6 {[%emt 0:04:09]} 20. Qd3 {[%emt 0:00:11]} d5 {[%emt 0:01:09]} 21. a5 {[%emt 0:03:46]} Bf8 {[%emt 0:08:10]} 22. Bb6 {[%emt 0:01:42]} Bc5+ {[%emt 0:00:10]} 23. Bxc5 {[%emt 0:00:06]} Qxc5+ {[%emt 0:00:02]} 24. Qd4 {[%emt 0:00:15]} Rac8 {[%emt 0:04:19]} 25. Qxc5 {[%emt 0:01:04]} Rxc5 {[%emt 0:00:03]} 26. Ra4 {[%emt 0:00:29]} Rb5 {[%emt 0:02:31]} 27. Rd2 {[%emt 0:01:53]} Rc8 {[%emt 0:04:20]} 28. exd5 {[%emt 0:02:11]} exd5 {[%emt 0:00:11]} 29. Rad4 {[%emt 0:02:18]} Rxa5 {[%emt 0:02:20]} 30. Rxd5 {[%emt 0:00:07]} Rxd5 {[%emt 0:00:14]} 31. Rxd5 {[%emt 0:00:02]} Rc6 {[%emt 0:03:09]} 32. Kf2 {[%emt 0:01:38]} Rb6 {[%emt 0:02:08]} 1/2-1/2

[Event "FIDE WYCC Girls U18 2023"]
[Site "Montesilvano"]
[Date "2023.11.17"]
[Round "5.5"]
[White "Bhagyashree Patil"]
[Black "Voriskova, Anna"]
[Result "1-0"]
[ECO "E58"]
[WhiteElo "1830"]
[BlackElo "2065"]
[Annotator "NA"]
[PlyCount "51"]
[EventDate "2023.11.13"]
[EventType "swiss"]
[EventCountry "ITA"]
[SourceTitle "playchess.com"]
[Source "ChessBase"]
[SourceQuality "1"]
[TimeControl "40/5400+30:1800+30"]

1. d4 {[%emt 0:01:41]} Nf6 {[%emt 0:00:08]} 2. Nf3 {[%emt 0:00:12]} d5 {[%emt 0:00:10]} 3. e3 {[%emt 0:00:26]} e6 {[%emt 0:02:45]} 4. c4 {[%emt 0:00:09]} Bb4+ {[%emt 0:02:39]} 5. Nc3 {[%emt 0:00:32]} O-O {[%emt 0:00:22]} 6. Bd3 {[%emt 0:00:24]} c5 {[%emt 0:01:23]} 7. a3 {[%emt 0:08:39]} Bxc3+ {[%emt 0:00:06]} 8. bxc3 {[%emt 0:00:03]} Nc6 {[%emt 0:01:13]} 9. O-O {[%emt 0:00:47]} Qc7 {[%emt 0:02:21]} 10. Bb2 {[%emt 0:05:54]} Rd8 {[%emt 0:03:41]} 11. Qe2 {[%emt 0:06:11]} b6 {[%emt 0:02:05]} 12. cxd5 {[%emt 0:05:03]} exd5 {[%emt 0:00:39]} 13. c4 {[%emt 0:00:58]} cxd4 {[%emt 0:11:54]} 14. cxd5 {[%emt 0:05:46]} Rxd5 {[%emt 0:08:34]} 15. Nxd4 {[%emt 0:01:56]} Ne5 {[%emt 0:09:32]} 16. Rac1 {[%emt 0:05:57]} Qd8 {[%emt 0:04:41]} 17. Bb1 {[%emt 0:04:06]} a5 {[%emt 0:05:23]} 18. Qc2 {[%emt 0:17:59]} Rc5 {[%emt 0:02:37]} 19. Qa4 {[%emt 0:03:03]} Bb7 {[%emt 0:04:49]} 20. Rxc5 {[%emt 0:03:01]} bxc5 {[%emt 0:00:01]} 21. Nf5 {[%emt 0:00:17]} Qc7 {[%emt 0:07:12]} 22. Qf4 {[%emt 0:03:33]} Re8 {[%emt 0:00:50]} 23. Qg5 {[%emt 0:01:25]} Ng6 {[%emt 0:01:09]} 24. Bxf6 {[%emt 0:01:35]} Qc6 {[%emt 0:02:20]} 25. Bxg7 {[%emt 0:01:21]} h6 {[%emt 0:01:48]} 26. Qg3 {[%emt 0:02:02]} 1-0

[Event "FIDE WYCC Girls U18 2023"]
[Site "Montesilvano"]
[Date "2023.11.17"]
[Round "5.6"]
[White "Trifoi, Mihaela-Ioana"]
[Black "Sovetbekova, Nurai"]
[Result "1-0"]
[ECO "B52"]
[WhiteElo "2021"]
[BlackElo "1801"]
[Annotator "NA"]
[PlyCount "143"]
[EventDate "2023.11.13"]
[EventType "swiss"]
[EventCountry "ITA"]
[SourceTitle "playchess.com"]
[Source "ChessBase"]
[SourceQuality "1"]
[TimeControl "40/5400+30:1800+30"]

1. e4 {[%emt 0:00:06]} c5 {[%emt 0:00:04]} 2. Nf3 {[%emt 0:00:09]} d6 {[%emt 0:00:05]} 3. Bb5+ {[%emt 0:00:08]} Bd7 {[%emt 0:00:05]} 4. Bxd7+ {[%emt 0:00:10]} Qxd7 {[%emt 0:00:04]} 5. O-O {[%emt 0:00:10]} Nf6 {[%emt 0:00:03]} 6. Re1 {[%emt 0:00:07]} Nc6 {[%emt 0:00:09]} 7. c3 {[%emt 0:00:13]} e6 {[%emt 0:00:07]} 8. d4 {[%emt 0:00:07]} cxd4 {[%emt 0:00:04]} 9. cxd4 {[%emt 0:00:04]} d5 {[%emt 0:00:04]} 10. e5 {[%emt 0:01:09]} Ne4 {[%emt 0:00:04]} 11. Nbd2 {[%emt 0:00:26]} Nxd2 {[%emt 0:00:06]} 12. Bxd2 {[%emt 0:00:05]} Bb4 {[%emt 0:00:03]} 13. Rc1 {[%emt 0:01:50]} O-O {[%emt 0:02:33]} 14. Rxc6 {[%emt 0:06:53]} Qxc6 {[%emt 0:01:18]} 15. Bxb4 {[%emt 0:00:16]} Rfc8 {[%emt 0:00:03]} 16. Bc3 {[%emt 0:03:13]} Qa6 {[%emt 0:05:15]} 17. a3 {[%emt 0:01:28]} Rc6 {[%emt 0:03:37]} 18. Re3 {[%emt 0:04:51]} Rac8 {[%emt 0:00:58]} 19. Qc2 {[%emt 0:09:07]} Qc4 {[%emt 0:20:55]} 20. h4 {[%emt 0:22:37]} h6 {[%emt 0:03:28]} 21. Qd2 {[%emt 0:01:25]} Qa2 {[%emt 0:11:09]} 22. Ne1 {[%emt 0:06:40]} Qb1 {[%emt 0:02:42]} 23. Rd3 {[%emt 0:04:41]} b5 {[%emt 0:08:36]} 24. Kh2 {[%emt 0:00:31]} a5 {[%emt 0:03:27]} 25. Bxa5 {[%emt 0:04:41]} Rc1 {[%emt 0:00:47]} 26. Rc3 {[%emt 0:06:38]} Rc4 {[%emt 0:04:41]} 27. Rxc1 Rxc1 28. Bc3 {[%emt 0:00:38]} Rd1 {[%emt 0:02:20]} 29. Qe2 {[%emt 0:00:25]} Rc1 {[%emt 0:10:59]} 30. Kg1 {[%emt 0:06:23]} Kh7 {[%emt 0:04:47]} 31. Kf1 {[%emt 0:02:13]} g6 {[%emt 0:03:47]} 32. Qf3 {[%emt 0:07:59]} Kg8 {[%emt 0:00:51]} 33. h5 {[%emt 0:00:26]} gxh5 {[%emt 0:01:34]} 34. Qxh5 {[%emt 0:00:14]} Qd3+ {[%emt 0:01:36]} 35. Qe2 {[%emt 0:00:45]} Qf5 {[%emt 0:01:01]} 36. Qd2 {[%emt 0:01:39]} Rb1 {[%emt 0:02:15]} 37. Qxh6 {[%emt 0:00:26]} Qd3+ {[%emt 0:01:06]} 38. Kg1 {[%emt 0:00:05]} Qe2 {[%emt 0:00:34]} 39. Qe3 {[%emt 0:00:07]} Qd1 {[%emt 0:01:12]} 40. Kf1 {[%emt 0:03:26]} Qh5 {[%emt 0:02:10]} 41. Qd3 {[%emt 0:04:42]} Qh1+ {[%emt 0:02:14]} 42. Ke2 {[%emt 0:00:10]} Qh5+ {[%emt 0:00:33]} 43. f3 {[%emt 0:01:12]} Ra1 {[%emt 0:00:59]} 44. Qxb5 {[%emt 0:00:08]} Qg5 {[%emt 0:01:07]} 45. Bd2 {[%emt 0:01:36]} Qh4 {[%emt 0:01:36]} 46. Qb4 {[%emt 0:02:19]} Qh7 {[%emt 0:00:45]} 47. Bg5 {[%emt 0:04:37]} Qb1 {[%emt 0:01:27]} 48. Bh6 {[%emt 0:03:53]} Kh7 {[%emt 0:02:07]} 49. Bd2 {[%emt 0:00:12]} Qd1+ {[%emt 0:01:20]} 50. Kf2 {[%emt 0:00:47]} Kg7 {[%emt 0:00:48]} 51. Qc3 {[%emt 0:01:33]} Rb1 {[%emt 0:01:15]} 52. g4 {[%emt 0:00:24]} Kg8 {[%emt 0:01:06]} 53. Bh6 {[%emt 0:01:55]} Kh7 {[%emt 0:01:38]} 54. Bg5 {[%emt 0:01:33]} Kg8 {[%emt 0:02:03]} 55. Bf6 {[%emt 0:01:35]} Rc1 {[%emt 0:00:39]} 56. Qe3 {[%emt 0:00:30]} Kf8 {[%emt 0:00:29]} 57. Qh6+ {[%emt 0:01:58]} Ke8 {[%emt 0:00:04]} 58. Qh8+ {[%emt 0:00:14]} Kd7 {[%emt 0:00:02]} 59. Qd8+ {[%emt 0:00:08]} Kc6 {[%emt 0:00:04]} 60. Qa8+ {[%emt 0:04:09]} Kc7 {[%emt 0:05:26]} 61. Qa5+ {[%emt 0:04:27]} Kc6 {[%emt 0:03:39]} 62. Qa6+ {[%emt 0:00:39]} Kc7 {[%emt 0:01:19]} 63. Qd6+ {[%emt 0:00:17]} Kb7 {[%emt 0:00:59]} 64. Qb4+ {[%emt 0:00:07]} Kc6 {[%emt 0:01:04]} 65. Bg5 {[%emt 0:02:00]} Rc4 {[%emt 0:01:18]} 66. Qd6+ {[%emt 0:00:12]} Kb7 {[%emt 0:00:36]} 67. Be3 {[%emt 0:01:23]} Qb3 {[%emt 0:02:13]} 68. Qe7+ {[%emt 0:00:36]} Ka6 {[%emt 0:00:28]} 69. Qxf7 {[%emt 0:00:23]} Qxb2+ {[%emt 0:00:19]} 70. Kg3 {[%emt 0:00:11]} Qc3 {[%emt 0:01:53]} 71. Ng2 {[%emt 0:01:07]} Rc6 {[%emt 0:00:34]} 72. g5 {[%emt 0:00:13]} 1-0

[Event "FIDE WYCC Girls U18 2023"]
[Site "Montesilvano"]
[Date "2023.11.17"]
[Round "5.7"]
[White "Matute Escobar, Roxanny"]
[Black "Oviedo Acosta, Paula"]
[Result "*"]
[WhiteElo "1995"]
[BlackElo "1639"]
[Annotator "NA"]
[PlyCount "93"]
[EventDate "2023.11.13"]
[EventType "swiss"]
[EventCountry "ITA"]
[SourceTitle "playchess.com"]
[Source "ChessBase"]
[SourceQuality "1"]
[TimeControl "40/5400+30:1800+30"]

1. e4 {[%emt 0:02:04]} c5 {[%emt 0:00:15]} 2. Nf3 {[%emt 0:00:10]} e6 {[%emt 0:00:17]} 3. d4 {[%emt 0:00:08]} cxd4 {[%emt 0:00:13]} 4. Nxd4 {[%emt 0:00:07]} a6 {[%emt 0:00:14]} 5. Nc3 {[%emt 0:00:18]} b5 {[%emt 0:00:20]} 6. a3 {[%emt 0:02:58]} Bb7 {[%emt 0:00:16]} 7. Be2 {[%emt 0:00:07]} Qc7 {[%emt 0:02:54]} 8. f4 {[%emt 0:00:21]} Bc5 {[%emt 0:03:14]} 9. Be3 {[%emt 0:00:28]} Nf6 {[%emt 0:07:31]} 10. Bf3 {[%emt 0:09:33]} e5 {[%emt 0:16:41]} 11. Nf5 {[%emt 0:09:48]} Bxe3 {[%emt 0:02:07]} 12. Nxe3 {[%emt 0:00:07]} exf4 {[%emt 0:06:57]} 13. Nf5 {[%emt 0:05:51]} O-O {[%emt 0:06:10]} 14. O-O {[%emt 0:06:57]} d5 {[%emt 0:10:09]} 15. Nxd5 {[%emt 0:04:46]} Nxd5 {[%emt 0:00:20]} 16. exd5 {[%emt 0:00:06]} Qe5 {[%emt 0:03:24]} 17. Qd3 {[%emt 0:01:09]} Nd7 {[%emt 0:02:43]} 18. Rae1 {[%emt 0:09:17]} Qxb2 {[%emt 0:04:53]} 19. c3 {[%emt 0:12:22]} Qxa3 {[%emt 0:02:46]} 20. Re7 {[%emt 0:03:47]} Qc5+ {[%emt 0:02:04]} 21. Kh1 {[%emt 0:00:25]} Rad8 {[%emt 0:00:33]} 22. Rfe1 {[%emt 0:01:43]} Bc8 {[%emt 0:02:29]} 23. d6 {[%emt 0:04:31]} Nf6 {[%emt 0:01:04]} 24. R7e5 {[%emt 0:05:42]} Bxf5 {[%emt 0:04:01]} 25. Qxf5 {[%emt 0:00:45]} Qxc3 {[%emt 0:01:27]} 26. Rd1 {[%emt 0:00:49]} b4 {[%emt 0:06:41]} 27. Qxf4 {[%emt 0:00:53]} Rfe8 {[%emt 0:01:48]} 28. Rxe8+ {[%emt 0:00:43]} Rxe8 {[%emt 0:00:14]} 29. h3 {[%emt 0:06:24]} a5 {[%emt 0:02:30]} 30. d7 {[%emt 0:01:39]} Rd8 {[%emt 0:03:09]} 31. Qd6 {[%emt 0:07:15]} h6 {[%emt 0:02:32]} 32. Qb6 {[%emt 0:00:35]} Rxd7 {[%emt 0:00:44]} 33. Rxd7 {[%emt 0:02:25]} Nxd7 {[%emt 0:00:06]} 34. Qd8+ {[%emt 0:00:11]} Nf8 {[%emt 0:00:06]} 35. Qxa5 {[%emt 0:00:04]} Qc1+ {[%emt 0:00:35]} 36. Kh2 {[%emt 0:00:06]} b3 {[%emt 0:00:11]} 37. Qb4 {[%emt 0:01:00]} b2 {[%emt 0:02:00]} 38. Be4 {[%emt 0:00:07]} g6 {[%emt 0:02:07]} 39. Qb8 {[%emt 0:00:12]} Qc3 {[%emt 0:00:32]} 40. Bb1 {[%emt 0:00:00]} Kg7 {[%emt 0:00:00]} 41. Ba2 {[%emt 0:01:05]} Nd7 {[%emt 0:00:39]} 42. Qb7 {[%emt 0:01:06]} Ne5 {[%emt 0:02:13]} 43. Qd5 {[%emt 0:03:30]} h5 {[%emt 0:05:18]} 44. Qe4 {[%emt 0:01:52]} Nd3 {[%emt 0:01:25]} 45. Qf3 {[%emt 0:06:10]} Qc7+ {[%emt 0:01:08]} 46. Kh1 {[%emt 0:02:38]} Qc1+ {[%emt 0:00:26]} 47. Kh2 {[%emt 0:00:08]} *

[Event "FIDE WYCC Girls U18 2023"]
[Site "Montesilvano"]
[Date "2023.11.17"]
[Round "5.8"]
[White "Starosta, Martyna"]
[Black "Largo, Franchesca"]
[Result "1/2-1/2"]
[ECO "D31"]
[WhiteElo "2208"]
[BlackElo "1658"]
[Annotator "ChessBase"]
[PlyCount "213"]
[EventDate "2023.11.13"]
[EventType "swiss"]
[EventCountry "ITA"]
[SourceTitle "playchess.com"]
[Source "ChessBase"]
[SourceQuality "1"]
[TimeControl "40/5400+30:1800+30"]

1. d4 {[%emt 0:00:05]} d5 {[%emt 0:00:32]} 2. c4 {[%emt 0:00:06]} e6 {[%emt 0:00:23]} 3. Nc3 {[%emt 0:00:05]} c6 {[%emt 0:00:21]} 4. e4 {[%emt 0:00:11]} dxe4 {[%emt 0:00:09]} 5. Nxe4 {[%emt 0:00:05]} Bb4+ {[%emt 0:00:13]} 6. Bd2 {[%emt 0:00:08]} Qxd4 {[%emt 0:00:36]} 7. Bxb4 {[%emt 0:00:09]} Qxe4+ {[%emt 0:00:07]} 8. Be2 {[%emt 0:00:06]} Na6 {[%emt 0:00:37]} 9. Ba5 {[%emt 0:00:38]} b6 {[%emt 0:00:33]} 10. Qd6 {[%emt 0:00:22]} Bd7 {[%emt 0:00:49]} 11. Rd1 {[%emt 0:07:07]} Rd8 {[%emt 0:01:14]} 12. Bc3 {[%emt 0:00:55]} f6 {[%emt 0:06:21]} 13. Nf3 {[%emt 0:03:37]} Nh6 {[%emt 0:00:56]} 14. Nd2 {[%emt 0:27:02]} Qf5 {[%emt 0:05:29]} 15. O-O {[%emt 0:02:36]} Qc5 {[%emt 0:11:47]} 16. Qg3 {[%emt 0:14:32]} O-O {[%emt 0:00:35]} 17. b4 {[%emt 0:03:34]} Qe7 {[%emt 0:21:46]} 18. c5 {[%emt 0:04:30]} Nf5 {[%emt 0:02:19]} 19. Qf4 {[%emt 0:01:09]} Bc8 {[%emt 0:02:53]} 20. Bc4 {[%emt 0:06:35]} Kh8 {[%emt 0:02:50]} 21. Rfe1 {[%emt 0:00:44]} e5 {[%emt 0:13:29]} 22. Qe4 {[%emt 0:01:55]} Nb8 {[%emt 0:01:31]} 23. Bd3 {[%emt 0:03:39]} Qd7 {[%emt 0:16:26]} 24. Nf3 {[%emt 0:05:52]} Qd5 {[%emt 0:01:13]} 25. Qe2 {[%emt 0:01:45]} Qf7 {[%emt 0:00:50]} 26. h3 {[%emt 0:03:29]} Nd4 {[%emt 0:05:10]} 27. Qe3 {[%emt 0:02:56]} Nxf3+ {[%emt 0:00:28]} 28. Qxf3 {[%emt 0:00:06]} Be6 {[%emt 0:00:10]} 29. Qe4 {[%emt 0:01:22]} Qg8 {[%emt 0:00:41]} 30. cxb6 {[%emt 0:01:12]} axb6 {[%emt 0:00:06]} 31. a4 {[%emt 0:01:12]} Bd5 {[%emt 0:00:52]} 32. Qe3 {[%emt 0:02:08]} Nd7 {[%emt 0:01:02]} 33. a5 {[%emt 0:00:25]} bxa5 {[%emt 0:00:26]} 34. bxa5 {[%emt 0:00:06]} Ra8 {[%emt 0:02:01]} 35. Rb1 {[%emt 0:01:23]} Qe6 {[%emt 0:01:10]} 36. Rb2 {[%emt 0:01:31]} h6 {[%emt 0:01:16]} 37. Qg3 {[%emt 0:01:57]} Rfe8 {[%emt 0:00:39]} 38. Rb7 {[%emt 0:01:03]} c5 {[%emt 0:00:17]} 39. Qg6 {[%emt 0:02:32]} e4 {[%emt 0:00:29]} 40. Rbb1 {[%emt 0:00:00]} c4 {[%emt 0:00:00]} 41. Bc2 {[%emt 0:04:12]} Qc6 {[%emt 0:08:28]} 42. Re3 {[%emt 0:06:31]} Nf8 {[%emt 0:10:11]} 43. Qh5 {[%emt 0:02:32]} Reb8 {[%emt 0:00:43]} 44. Rd1 {[%emt 0:04:49]} Rd8 {[%emt 0:02:41]} 45. Rg3 {[%emt 0:03:43]} Rd7 {[%emt 0:05:33]} 46. Qh4 {[%emt 0:03:36]} Qe6 {[%emt 0:03:59]} 47. Re1 {[%emt 0:02:10]} Re8 {[%emt 0:01:13]} 48. Rb1 {[%emt 0:01:07]} Rb7 {[%emt 0:00:31]} 49. Rd1 {[%emt 0:01:07]} Rd7 {[%emt 0:02:03]} 50. Rb1 {[%emt 0:00:59]} Rb7 {[%emt 0:00:07]} 51. Re1 {[%emt 0:00:38]} f5 {[%emt 0:00:55]} 52. Qh5 {[%emt 0:01:37]} Kh7 {[%emt 0:00:41]} 53. a6 {[%emt 0:02:03]} Rf7 {[%emt 0:00:15]} 54. Qd1 {[%emt 0:01:14]} Ra8 {[%emt 0:00:30]} 55. Qd4 {[%emt 0:00:30]} Raa7 {[%emt 0:00:30]} 56. f3 {[%emt 0:00:58]} Qd6 {[%emt 0:00:39]} 57. Kf2 {[%emt 0:00:50]} Ne6 {[%emt 0:00:13]} 58. Qe5 {[%emt 0:00:49]} Qxe5 {[%emt 0:00:34]} 59. Bxe5 {[%emt 0:00:02]} Rxa6 {[%emt 0:00:15]} 60. fxe4 {[%emt 0:00:19]} fxe4+ {[%emt 0:00:35]} 61. Kg1 {[%emt 0:00:16]} Nc5 {[%emt 0:00:22]} 62. Rb1 {[%emt 0:01:36]} Re6 {[%emt 0:00:58]} 63. Bd4 {[%emt 0:00:39]} Nb3 {[%emt 0:00:30]} 64. Bc3 {[%emt 0:00:27]} Kg8 {[%emt 0:00:32]} 65. Rd1 {[%emt 0:00:05]} Bc6 {[%emt 0:00:31]} 66. Rd8+ {[%emt 0:00:07]} Kh7 {[%emt 0:00:27]} 67. Rc8 {[%emt 0:00:15]} Bd5 {[%emt 0:00:35]} 68. Rb8 {[%emt 0:01:25]} Nc1 {[%emt 0:00:07]} 69. Re3 {[%emt 0:00:22]} Nd3 70. Rd8 Rf5 {[%emt 0:01:31]} 71. Rd7 {[%emt 0:01:19]} Rg6 {[%emt 0:00:08]} 72. g4 {[%emt 0:00:50]} h5 {[%emt 0:00:18]} 73. Rg3 {[%emt 0:00:28]} Bc6 {[%emt 0:00:42]} 74. Rxg7+ {[%emt 0:00:34]} Rxg7 {[%emt 0:00:19]} 75. Bxg7 {[%emt 0:00:01]} Rf7 76. Bc3 {[%emt 0:00:43]} h4 {[%emt 0:01:24]} 77. Re3 {[%emt 0:00:10]} Kg6 {[%emt 0:00:16]} 78. Be1 {[%emt 0:00:39]} Kg5 {[%emt 0:00:26]} 79. Bd2 {[%emt 0:00:08]} Kf6 {[%emt 0:00:39]} 80. Bd1 {[%emt 0:00:54]} Ke5 {[%emt 0:00:16]} 81. Bc3+ {[%emt 0:00:01]} Ke6 {[%emt 0:00:58]} 82. g5 {[%emt 0:00:08]} Kf5 {[%emt 0:00:32]} 83. Bd2 {[%emt 0:00:37]} Nf4 {[%emt 0:00:28]} 84. Rc3 {[%emt 0:00:26]} Bd5 {[%emt 0:00:31]} 85. Ra3 {[%emt 0:00:48]} Re7 {[%emt 0:00:22]} 86. Ra5 {[%emt 0:01:01]} e3 {[%emt 0:00:06]} 87. Be1 {[%emt 0:00:44]} Kg6 {[%emt 0:00:49]} 88. Bxh4 {[%emt 0:00:14]} e2 {[%emt 0:00:32]} 89. Bc2+ {[%emt 0:00:12]} Kh5 {[%emt 0:00:06]} 90. Be1 {[%emt 0:01:04]} Be4 {[%emt 0:00:51]} 91. Bxe4 {[%emt 0:00:36]} Rxe4 {[%emt 0:00:04]} 92. h4 {[%emt 0:00:15]} Nd3 93. Ra1 {[%emt 0:00:09]} Rg4+ {[%emt 0:01:00]} 94. Kh2 {[%emt 0:00:08]} Rf4 {[%emt 0:00:04]} 95. Bd2 {[%emt 0:01:07]} Rf1 {[%emt 0:00:06]} 96. Ra4 {[%emt 0:00:08]} Rc1 {[%emt 0:00:47]} 97. g6 {[%emt 0:00:18]} Kxg6 {[%emt 0:00:17]} 98. Ra6+ {[%emt 0:00:17]} Kf5 {[%emt 0:00:26]} 99. h5 {[%emt 0:00:23]} e1=Q {[%emt 0:00:41]} 100. Bxe1 {[%emt 0:00:05]} Nxe1 {[%emt 0:00:59]} 101. h6 {[%emt 0:00:10]} Nf3+ {[%emt 0:00:10]} 102. Kg2 {[%emt 0:00:24]} Ng5 {[%emt 0:00:08]} 103. Ra5+ {[%emt 0:00:10]} Kg6 {[%emt 0:02:04]} 104. Rxg5+ {[%emt 0:00:06]} Kxh6 {[%emt 0:00:03]} 105. Rc5 {[%emt 0:00:36]} Kg6 {[%emt 0:00:06]} 106. Kf2 {[%emt 0:00:10]} Kf6 {[%emt 0:00:18]} 107. Ke3 {[%emt 0:00:24]} 1/2-1/2

[Event "FIDE WYCC Girls U18 2023"]
[Site "Montesilvano"]
[Date "2023.11.17"]
[Round "5.9"]
[White "Gasimova, Samra"]
[Black "Abrisqueta Zudaire, Leyre"]
[Result "1/2-1/2"]
[ECO "E48"]
[WhiteElo "1860"]
[BlackElo "2137"]
[Annotator "NA"]
[PlyCount "68"]
[EventDate "2023.11.13"]
[EventType "swiss"]
[EventCountry "ITA"]
[SourceTitle "playchess.com"]
[Source "ChessBase"]
[SourceQuality "1"]
[TimeControl "40/5400+30:1800+30"]

1. d4 {[%emt 0:00:03]} Nf6 {[%emt 0:00:08]} 2. c4 {[%emt 0:00:07]} e6 {[%emt 0:00:12]} 3. Nc3 {[%emt 0:00:08]} Bb4 {[%emt 0:00:24]} 4. e3 {[%emt 0:00:08]} O-O {[%emt 0:00:19]} 5. Bd3 {[%emt 0:00:07]} d5 {[%emt 0:00:15]} 6. Nge2 {[%emt 0:01:51]} dxc4 {[%emt 0:00:43]} 7. Bxc4 {[%emt 0:00:15]} c5 {[%emt 0:00:13]} 8. O-O {[%emt 0:04:32]} cxd4 {[%emt 0:00:49]} 9. exd4 {[%emt 0:02:36]} Nc6 {[%emt 0:00:23]} 10. Bg5 {[%emt 0:09:04]} Be7 {[%emt 0:02:15]} 11. a3 {[%emt 0:19:09]} h6 {[%emt 0:04:18]} 12. Bf4 {[%emt 0:03:19]} b6 {[%emt 0:03:54]} 13. d5 {[%emt 0:05:06]} Na5 {[%emt 0:09:35]} 14. Ba2 {[%emt 0:02:11]} exd5 {[%emt 0:00:43]} 15. Nxd5 {[%emt 0:02:47]} Ba6 {[%emt 0:03:30]} 16. Re1 {[%emt 0:13:40]} Nxd5 {[%emt 0:04:23]} 17. Bxd5 {[%emt 0:00:10]} Rc8 {[%emt 0:00:27]} 18. Ng3 {[%emt 0:04:36]} Bf6 {[%emt 0:11:47]} 19. Nf5 {[%emt 0:12:05]} Bc4 {[%emt 0:13:23]} 20. Nd6 {[%emt 0:15:01]} Rc5 {[%emt 0:05:51]} 21. Bxc4 {[%emt 0:00:49]} Nxc4 {[%emt 0:00:17]} 22. Nxc4 {[%emt 0:02:08]} Rxc4 {[%emt 0:00:45]} 23. Be5 {[%emt 0:01:04]} Bxe5 {[%emt 0:01:40]} 24. Rxe5 {[%emt 0:00:12]} Qxd1+ {[%emt 0:01:08]} 25. Rxd1 {[%emt 0:00:01]} Rc2 {[%emt 0:00:09]} 26. Re7 {[%emt 0:01:09]} a5 {[%emt 0:02:16]} 27. b4 {[%emt 0:01:04]} axb4 {[%emt 0:01:44]} 28. axb4 {[%emt 0:00:03]} Rb2 {[%emt 0:02:55]} 29. g3 {[%emt 0:00:28]} Rxb4 {[%emt 0:00:17]} 30. Rdd7 {[%emt 0:00:04]} g5 {[%emt 0:04:01]} 31. Rb7 {[%emt 0:01:28]} Kg7 {[%emt 0:10:03]} 32. Rec7 {[%emt 0:00:32]} b5 {[%emt 0:01:39]} 33. Kg2 {[%emt 0:00:21]} Rb2 {[%emt 0:01:00]} 34. Rc5 {[%emt 0:00:15]} b4 {[%emt 0:00:09]} 1/2-1/2

[Event "FIDE WYCC Girls U18 2023"]
[Site "Montesilvano"]
[Date "2023.11.17"]
[Round "5.10"]
[White "Cornileau, Juliette"]
[Black "Groeschel, Karoline"]
[Result "1/2-1/2"]
[ECO "E54"]
[WhiteElo "2089"]
[BlackElo "1924"]
[Annotator "NA"]
[PlyCount "72"]
[EventDate "2023.11.13"]
[EventType "swiss"]
[EventCountry "ITA"]
[SourceTitle "playchess.com"]
[Source "ChessBase"]
[SourceQuality "1"]
[TimeControl "40/5400+30:1800+30"]

1. d4 {[%emt 0:00:03]} Nf6 {[%emt 0:00:04]} 2. c4 {[%emt 0:00:04]} e6 {[%emt 0:00:04]} 3. Nc3 {[%emt 0:00:02]} Bb4 {[%emt 0:00:05]} 4. e3 {[%emt 0:00:04]} O-O {[%emt 0:00:07]} 5. Bd3 {[%emt 0:00:04]} d5 {[%emt 0:00:06]} 6. Nf3 {[%emt 0:00:05]} dxc4 {[%emt 0:00:05]} 7. Bxc4 {[%emt 0:00:11]} c5 {[%emt 0:00:05]} 8. O-O {[%emt 0:01:05]} cxd4 {[%emt 0:00:04]} 9. exd4 {[%emt 0:00:05]} b6 {[%emt 0:00:04]} 10. Bg5 {[%emt 0:01:40]} h6 {[%emt 0:00:06]} 11. Bh4 {[%emt 0:01:07]} Bb7 {[%emt 0:00:04]} 12. Rc1 {[%emt 0:03:29]} Nc6 {[%emt 0:00:16]} 13. Re1 {[%emt 0:07:06]} Rc8 {[%emt 0:00:40]} 14. Bd3 {[%emt 0:04:56]} Be7 {[%emt 0:00:43]} 15. a3 {[%emt 0:06:25]} Nh5 {[%emt 0:08:19]} 16. Bxe7 {[%emt 0:07:19]} Nxe7 {[%emt 0:00:12]} 17. Be4 {[%emt 0:27:54]} Bxe4 {[%emt 0:04:53]} 18. Nxe4 {[%emt 0:01:16]} Rxc1 {[%emt 0:18:17]} 19. Qxc1 {[%emt 0:00:20]} Nd5 {[%emt 0:01:17]} 20. Qd2 {[%emt 0:03:55]} Nhf6 {[%emt 0:04:09]} 21. Nc3 {[%emt 0:02:29]} Nxc3 {[%emt 0:11:57]} 22. Qxc3 {[%emt 0:01:18]} Qd6 {[%emt 0:01:40]} 23. Rc1 {[%emt 0:06:08]} Nd5 {[%emt 0:05:21]} 24. Qd3 {[%emt 0:07:11]} Rd8 {[%emt 0:05:20]} 25. g3 {[%emt 0:00:47]} Ne7 {[%emt 0:03:28]} 26. Qe4 {[%emt 0:04:48]} Qd5 {[%emt 0:02:28]} 27. Qf4 {[%emt 0:03:17]} Nc6 {[%emt 0:06:13]} 28. Ne5 {[%emt 0:05:36]} Nxe5 {[%emt 0:06:58]} 29. dxe5 {[%emt 0:00:19]} Qd2 {[%emt 0:01:00]} 30. Qxd2 {[%emt 0:01:18]} Rxd2 {[%emt 0:00:04]} 31. Rc8+ {[%emt 0:00:04]} Kh7 {[%emt 0:00:04]} 32. Rc7 {[%emt 0:00:05]} Kg6 {[%emt 0:00:56]} 33. b4 {[%emt 0:01:03]} a5 {[%emt 0:02:02]} 34. Rb7 {[%emt 0:02:27]} Ra2 {[%emt 0:02:22]} 35. Rxb6 {[%emt 0:00:48]} Rxa3 {[%emt 0:00:10]} 36. Kg2 {[%emt 0:01:42]} axb4 {[%emt 0:02:17]} 1/2-1/2